bitfinex-derivatives/quotes_BTCF0:USTF0_20251119
["timestamp","ask_amount","ask_price","bid_price","bid_amount"]
[1763527664401,0.1535058,91503.0,91502.0,0.0224239]
[1763527665406,0.04414,91503.0,91502.0,0.0224239]
[1763527665702,0.05773,91510.0,91509.0,0.1542587]
[1763527665888,0.04414,91509.0,91508.0,0.1093592]
[1763527668396,0.02138,91505.0,91504.0,0.4701638]
[1763527668596,0.04414,91505.0,91504.0,0.4924238]
[1763527669702,0.04414,91505.0,91504.0,0.5150638]
[1763527670389,0.04414,91505.0,91504.0,0.5160638]
[1763527672702,0.1535034,91505.0,91504.0,0.4067]
[1763527674302,0.1535034,91505.0,91504.0,0.4057]
[1763527674507,0.04414,91505.0,91504.0,0.4057]
[1763527675401,0.05773,91512.0,91511.0,0.0449]
[1763527679707,0.05721031,91521.0,91520.0,0.04589]
[1763527679901,0.05721031,91521.0,91520.0,0.04808803]
[1763527680398,0.04362031,91521.0,91520.0,0.04808803]
[1763527680600,0.00011031,91521.0,91520.0,0.40888803]
[1763527681501,0.05624,91544.0,91543.0,0.04589]
[1763527683608,0.05824,91544.0,91543.0,0.04589]
[1763527688107,0.04351,91541.0,91540.0,0.00219803]
[1763527688301,0.1528376,91535.0,91534.0,0.0460539]
[1763527688501,0.04351,91535.0,91534.0,0.0460539]
[1763527689107,0.05624,91520.0,91513.0,0.1093532]
[1763527689306,0.1528604,91516.0,91515.0,0.04589]
[1763527689600,0.04351,91516.0,91515.0,0.04589]
[1763527689998,0.1093468,91519.0,91518.0,0.04589]
[1763527690510,0.1528568,91519.0,91518.0,0.04589]
[1763527691008,0.1657402,91528.0,91527.0,0.04589]
[1763527691203,0.1528579,91518.0,91517.0,0.40669]
[1763527692005,0.1528579,91518.0,91517.0,0.38404]
[1763527692206,0.1528579,91518.0,91517.0,0.40669]
[1763527694513,0.1528675,91510.0,91509.0,0.3842039]
[1763527694708,0.1528675,91510.0,91509.0,0.3609639]
[1763527695311,0.16378287,91510.0,91509.0,0.3609639]
[1763527695603,0.1528675,91510.0,91509.0,0.3609639]
[1763527697618,0.1528675,91510.0,91509.0,0.0001639]
[1763527698313,0.152883,91497.0,91496.0,0.38404]
[1763527698720,0.152883,91497.0,91496.0,0.40669]
[1763527699919,0.152883,91497.0,91496.0,0.40769]
[1763527701022,0.04351,91497.0,91496.0,0.40769]
[1763527705321,0.38245,91505.0,91504.0,0.04561]
[1763527705527,0.40357,91505.0,91504.0,0.04561]
[1763527707334,0.04277,91505.0,91504.0,0.04561]
[1763527707632,0.1526182,91501.0,91500.0,0.00219803]
[1763527708017,0.1526182,91501.0,91500.0,0.02517803]
[1763527709632,0.1526182,91501.0,91500.0,0.04763803]
[1763527710530,0.1526182,91501.0,91500.0,0.00219803]
[1763527711433,0.1526182,91501.0,91500.0,0.04763803]
[1763527711835,0.1526182,91501.0,91500.0,0.00219803]
[1763527712228,0.1526182,91501.0,91500.0,0.02517803]
[1763527712429,0.1526182,91501.0,91500.0,0.04763803]
[1763527712839,0.1526182,91501.0,91500.0,0.00219803]
[1763527714235,0.1526182,91501.0,91500.0,0.04763803]
[1763527714737,0.1526182,91501.0,91500.0,0.02517803]
[1763527715536,0.1526182,91501.0,91500.0,0.04763803]
[1763527717637,0.1526182,91501.0,91500.0,0.15700743]
[1763527718031,0.1526182,91501.0,91500.0,0.04763803]
[1763527718234,0.1526182,91501.0,91500.0,0.00219803]
[1763527718725,0.1526182,91501.0,91500.0,0.04763803]
[1763527720736,0.1526182,91501.0,91500.0,0.00219803]
[1763527720940,0.1526314,91490.0,91481.0,0.1093912]
[1763527721143,0.1526314,91490.0,91476.0,0.3608]
[1763527721441,0.0561,91488.0,91476.0,0.62492]
[1763527721640,0.0561,91488.0,91476.0,0.3608]
[1763527722033,0.152635,91487.0,91476.0,0.3608]
[1763527723045,0.152635,91487.0,91477.0,0.0001639]
[1763527724339,0.152635,91487.0,91486.0,0.02325327]
[1763527724540,0.152635,91487.0,91486.0,0.04571327]
[1763527725044,0.152635,91487.0,91486.0,0.02325327]
[1763527725245,0.152635,91487.0,91486.0,0.04571327]
[1763527725441,0.04325,91487.0,91486.0,0.04571327]
[1763527726747,0.04325,91493.0,91492.0,0.04544]
[1763527729645,0.04325,91493.0,91490.0,0.00219803]
[1763527729646,0.04325,91491.0,91490.0,0.00219803]
[1763527730049,0.152635,91487.0,91486.0,0.00027327]
[1763527730243,0.513435,91487.0,91486.0,0.00027327]
[1763527730444,0.1526457,91478.0,91476.0,0.3608]
[1763527730645,0.1094101,91466.0,91465.0,0.3608]
[1763527730842,0.1308497,91458.0,91457.0,0.3608]
[1763527731036,0.1526697,91458.0,91457.0,0.3608]
[1763527732045,0.1526697,91458.0,91457.0,0.3628]
[1763527732550,0.1526697,91458.0,91457.0,0.3618]
[1763527732748,0.1526697,91458.0,91457.0,0.3608]
[1763527733747,0.26416,91461.0,91450.0,0.02517803]
[1763527733748,0.152678,91451.0,91450.0,0.02517803]
[1763527733947,0.04325,91449.0,91448.0,0.000164]
[1763527737943,0.40405,91449.0,91448.0,0.000164]
[1763527739645,0.40405,91449.0,91448.0,0.022654]
[1763527739940,0.40405,91449.0,91448.0,0.045284]
[1763527740748,0.40405,91449.0,91448.0,0.000164]
[1763527741144,0.40405,91449.0,91448.0,0.022654]
[1763527741851,0.058,91456.0,91455.0,0.04512]
[1763527743053,0.04515,91451.0,91450.0,0.36299803]
[1763527743253,0.04515,91451.0,91450.0,0.40811803]
[1763527743450,0.04515,91451.0,91450.0,0.38548803]
[1763527743746,0.04515,91451.0,91450.0,0.40811803]
[1763527746043,0.04515,91449.0,91448.0,0.000164]
[1763527749050,0.04515,91449.0,91448.0,0.045284]
[1763527750348,0.04515,91449.0,91448.0,0.000164]
[1763527751041,0.04515,91449.0,91448.0,0.045284]
[1763527752757,0.1545804,91449.0,91448.0,0.000164]
[1763527757362,0.1545804,91449.0,91448.0,0.1547156]
[1763527757754,0.04515,91449.0,91448.0,0.1547156]
[1763527757955,0.02332,91449.0,91448.0,0.1547156]
[1763527758161,0.30943,91455.0,91454.0,0.1545444]
[1763527758357,0.30943,91455.0,91450.0,0.00219803]
[1763527758558,0.154578,91451.0,91450.0,0.00219803]
[1763527758757,0.04515,91451.0,91450.0,0.00219803]
[1763527758962,0.04515,91451.0,91450.0,0.04731803]
[1763527759555,0.04515,91451.0,91450.0,0.00219803]
[1763527760060,0.04515,91451.0,91450.0,0.02468803]
[1763527760364,0.04515,91451.0,91450.0,0.00219803]
[1763527761457,0.04515,91451.0,91450.0,0.04731803]
[1763527762256,0.154578,91451.0,91450.0,0.04731803]
[1763527762657,0.04515,91451.0,91450.0,0.04731803]
[1763527764554,0.04515,91451.0,91450.0,0.00219803]
[1763527765459,0.04515,91451.0,91450.0,0.04643803]
[1763527766060,0.04515,91451.0,91450.0,0.02359803]
[1763527766270,0.04515,91451.0,91450.0,0.04643803]
[1763527769164,0.26428,91455.0,91448.0,0.360964]
[1763527769165,0.04545,91449.0,91448.0,0.360964]
[1763527769368,0.04545,91449.0,91448.0,0.000164]
[1763527772466,0.04545,91449.0,91448.0,0.044644]
[1763527772671,0.04545,91449.0,91448.0,0.000164]
[1763527774476,0.04545,91449.0,91448.0,0.1540756]
[1763527774662,0.1548804,91449.0,91448.0,0.044644]
[1763527775066,0.1548804,91449.0,91448.0,0.023174]
[1763527775269,0.04545,91449.0,91448.0,0.1326056]
[1763527775669,0.04545,91449.0,91448.0,0.1095956]
[1763527776676,0.04545,91449.0,91448.0,0.1326056]
[1763527777068,0.04545,91449.0,91448.0,0.1540756]
[1763527780875,0.167722,91456.0,91455.0,0.04448]
[1763527781081,0.04545,91449.0,91448.0,0.000164]
[1763527781270,0.04545,91449.0,91430.0,0.02311304]
[1763527781271,0.154902,91431.0,91430.0,0.02311304]
[1763527781473,0.154902,91431.0,91400.0,0.10538358]
[1763527781474,0.04545,91422.0,91421.0,0.04448]
[1763527781774,0.04545,91418.0,91417.0,0.5147481]
[1763527782575,0.04556147,91418.0,91417.0,0.5147481]
[1763527782775,0.04456147,91418.0,91417.0,0.5147481]
[1763527784091,0.00011147,91418.0,91417.0,0.5147481]
[1763527784386,7e-08,91418.0,91417.0,0.5147481]
[1763527784878,0.04545007,91418.0,91417.0,0.7790281]
[1763527785074,0.04545007,91418.0,91417.0,0.5147481]
[1763527786982,0.04545007,91418.0,91417.0,0.5137481]
[1763527787973,7e-08,91418.0,91417.0,0.4692681]
[1763527788178,0.045614,91427.0,91426.0,0.1539379]
[1763527788379,0.045614,91427.0,91426.0,0.5147379]
[1763527788684,0.000164,91427.0,91426.0,0.5147379]
[1763527790379,0.05853,91455.0,91454.0,0.1539044]
[1763527790981,0.05853,91462.0,91461.0,0.1538961]
[1763527791182,0.05853,91462.0,91461.0,0.5146961]
[1763527791789,0.05853,91469.0,91468.0,0.1538877]
[1763527793087,0.05953,91469.0,91468.0,0.1538877]
[1763527793891,0.05953,91469.0,91468.0,0.04448]
[1763527796385,0.1548756,91453.0,91452.0,0.000164]
[1763527796589,0.1548756,91453.0,91452.0,0.044644]
[1763527797587,0.05574,91469.0,91468.0,0.04312]
[1763527797791,0.05574,91469.0,91452.0,0.264404]
[1763527797792,0.04266,91463.0,91462.0,0.40392]
[1763527799493,0.04366,91463.0,91462.0,0.40392]
[1763527800392,0.001,91463.0,91462.0,0.40392]
[1763527801487,0.02221,91463.0,91462.0,0.40392]
[1763527801699,0.001,91463.0,91462.0,0.40392]
[1763527801993,0.10939,91483.0,91470.0,0.1525253]
[1763527802188,0.00027327,91486.0,91470.0,0.77976333]
[1763527803489,0.042824,91471.0,91470.0,0.49428333]
[1763527803687,0.042824,91471.0,91470.0,0.67035803]
[1763527804093,0.043824,91471.0,91470.0,0.67035803]
[1763527805196,0.001164,91471.0,91470.0,0.67035803]
[1763527805400,0.04293327,91486.0,91485.0,0.04312]
[1763527805692,0.1093874,91485.0,91480.0,0.36299803]
[1763527805883,0.04266,91481.0,91480.0,0.40611803]
[1763527806590,0.1650029,91472.0,91471.0,0.000164]
[1763527808395,0.0556,91472.0,91471.0,0.000164]
[1763527808697,0.0556,91472.0,91471.0,0.043284]
[1763527808991,0.0556,91480.0,91479.0,0.1525145]
[1763527809394,0.04266,91480.0,91479.0,0.1525145]
[1763527809583,0.00027327,91486.0,91485.0,0.1525074]
[1763527813004,0.00027327,91486.0,91485.0,0.1604974]
[1763527814299,0.000164,91490.0,91485.0,0.1604974]
[1763527814300,0.000164,91490.0,91489.0,0.1525026]
[1763527814601,0.04266,91509.0,91508.0,0.04312]
[1763527815499,0.04266,91500.0,91499.0,0.404084]
[1763527815700,0.1520294,91500.0,91499.0,0.404084]
[1763527816295,0.1520294,91500.0,91499.0,0.360964]
[1763527816995,0.1530294,91500.0,91499.0,0.360964]
[1763527817191,0.1530294,91500.0,91499.0,0.000164]
[1763527817900,0.1520294,91500.0,91499.0,0.000164]
[1763527818101,0.1530294,91500.0,91499.0,0.000164]
[1763527818893,0.04266,91482.0,91481.0,0.3608]
[1763527819092,0.04266,91482.0,91481.0,0.40392]
[1763527820103,0.042824,91491.0,91490.0,0.1525014]
[1763527820403,0.042824,91491.0,91490.0,0.00219803]
[1763527820792,0.042824,91491.0,91490.0,0.04670803]
[1763527821000,0.000164,91491.0,91490.0,0.04670803]
[1763527821804,0.044394,91491.0,91490.0,0.04670803]
[1763527825914,0.1537742,91491.0,91490.0,0.00219803]
[1763527826108,0.1536185,91484.0,91483.0,0.3608]
[1763527826702,0.1536185,91484.0,91483.0,0.38361]
[1763527827111,0.1536185,91484.0,91483.0,0.40624]
[1763527828112,0.1536185,91484.0,91483.0,0.3608]
[1763527832813,0.1540917,91473.0,91472.0,0.383944]
[1763527833112,0.1540917,91473.0,91472.0,0.360964]
[1763527833700,0.1540917,91473.0,91472.0,0.406574]
[1763527834519,0.05826,91480.0,91479.0,0.04561]
[1763527837915,0.1676533,91480.0,91479.0,0.04561]
[1763527838616,0.04469,91473.0,91472.0,0.360964]
[1763527840714,0.04469,91473.0,91472.0,0.000164]
[1763527840908,0.04469,91458.0,91457.0,0.3608]
[1763527841215,0.04469,91447.0,91446.0,0.40668339]
[1763527842315,0.04469,91447.0,91446.0,0.40768339]
[1763527843308,0.058424,91456.0,91455.0,0.04561]
[1763527847011,0.058424,91456.0,91455.0,0.40641]
[1763527847817,0.022604,91456.0,91455.0,0.40641]
[1763527848210,0.058424,91456.0,91455.0,0.40641]
[1763527848613,0.167846,91456.0,91455.0,0.40641]
[1763527848918,0.167846,91456.0,91455.0,0.04561]
[1763527849319,0.058424,91456.0,91455.0,0.04561]
[1763527849912,0.154118,91451.0,91450.0,0.04780803]
[1763527850112,0.154118,91451.0,91446.0,0.36107339]
[1763527850113,0.1541228,91447.0,91446.0,0.36107339]
[1763527850322,0.1541324,91439.0,91427.0,0.3608]
[1763527850528,0.4183324,91439.0,91427.0,0.3608]
[1763527850821,0.02244,91439.0,91438.0,0.04571806]
[1763527851412,0.04469,91439.0,91438.0,0.04571806]
[1763527852309,0.04469,91439.0,91438.0,0.04671806]
[1763527853920,0.05826,91448.0,91447.0,0.04561]
[1763527859315,0.05826,91448.0,91447.0,0.1550428]
[1763527859515,0.05826,91448.0,91447.0,0.04561]
[1763527861721,0.0427,91439.0,91438.0,0.40337806]
[1763527862721,0.0427,91439.0,91438.0,0.36090806]
[1763527863926,0.0427,91439.0,91438.0,0.36190806]
[1763527865127,0.0427,91439.0,91438.0,0.36090806]
[1763527867220,0.1521436,91438.0,91437.0,2.06e-06]
[1763527867427,0.1521436,91438.0,91437.0,0.04247206]
[1763527867628,0.4164236,91438.0,91437.0,0.04247206]
[1763527868228,0.41650209,91438.0,91437.0,0.04247206]
[1763527869223,0.30705849,91438.0,91437.0,0.40327206]
[1763527869424,0.41650209,91438.0,91437.0,0.40327206]
[1763527870931,0.30705849,91438.0,91437.0,0.51271686]
[1763527871228,0.04277849,91438.0,91437.0,0.51271686]
[1763527871418,7.849e-05,91438.0,91437.0,0.51271686]
[1763527871618,0.04277849,91438.0,91437.0,0.40327206]
[1763527871828,0.02133849,91438.0,91437.0,0.40327206]
[1763527873331,0.04277849,91438.0,91437.0,0.40327206]
[1763527874234,0.15222209,91438.0,91437.0,0.40327206]
[1763527874422,0.04277849,91438.0,91437.0,0.40327206]
[1763527875031,0.02133849,91438.0,91437.0,0.40327206]
[1763527875231,7.849e-05,91438.0,91437.0,0.40327206]
[1763527875833,0.02133849,91438.0,91437.0,0.40327206]
[1763527876133,0.04277849,91438.0,91437.0,0.40327206]
[1763527876636,0.15222209,91438.0,91437.0,0.40327206]
[1763527878034,0.15222209,91438.0,91437.0,0.51271686]
[1763527878222,0.04277849,91438.0,91437.0,0.51271686]
[1763527879132,7.849e-05,91438.0,91437.0,0.51271686]
[1763527880835,0.41707,91448.0,91447.0,0.1519028]
[1763527881034,0.5265016,91448.0,91447.0,0.1519028]
[1763527881623,0.5265016,91448.0,91447.0,0.04247]
[1763527884539,0.1531136,91438.0,91437.0,0.40483206]
[1763527884837,0.04367,91438.0,91437.0,0.51427686]
[1763527885340,0.04367,91438.0,91437.0,0.40483206]
[1763527888344,0.04367,91438.0,91437.0,0.51427686]
[1763527889041,0.04367,91438.0,91437.0,0.40509206]
[1763527889741,0.03566,91441.0,91440.0,0.04526803]
[1763527889944,0.0582,91441.0,91440.0,0.04526803]
[1763527891439,0.41978,91448.0,91447.0,0.1525028]
[1763527891641,0.059144,91456.0,91455.0,0.04307]
[1763527892143,0.04541,91453.0,91452.0,0.1304458]
[1763527892337,0.04541,91451.0,91450.0,0.04526803]
[1763527894344,0.04641,91451.0,91450.0,0.04526803]
[1763527896138,0.04641,91451.0,91450.0,0.02321803]
[1763527896344,0.04641,91451.0,91450.0,0.04526803]
[1763527896648,0.013734,91456.0,91450.0,0.00219803]
[1763527896649,0.000164,91456.0,91450.0,0.00219803]
[1763527896846,0.05833,91470.0,91469.0,0.04307]
[1763527897037,0.03579,91476.0,91475.0,0.02102]
[1763527897231,0.04541,91476.0,91475.0,0.04307]
[1763527897541,0.05833,91476.0,91475.0,0.04307]
[1763527899539,0.05833,91476.0,91475.0,0.04407]
[1763527900038,0.05833,91476.0,91475.0,0.04307]
[1763527901739,0.02287,91476.0,91475.0,0.04307]
[1763527901946,0.41913,91483.0,91482.0,0.04307]
[1763527902349,0.05833,91483.0,91482.0,0.04307]
[1763527902544,0.00852192,91485.0,91484.0,0.04307]
[1763527902742,0.03139192,91485.0,91484.0,0.04307]
[1763527903051,0.05393192,91485.0,91484.0,0.04307]
[1763527905450,0.16331932,91485.0,91484.0,0.04307]
[1763527906046,0.05393192,91485.0,91484.0,0.04307]
[1763527906444,0.00852192,91485.0,91484.0,0.04307]
[1763527907640,0.05833,91504.0,91503.0,0.04307]
[1763527908050,0.1676946,91504.0,91503.0,0.04307]
[1763527908551,0.05833,91504.0,91503.0,0.40387]
[1763527908754,0.04541,91504.0,91503.0,0.40387]
[1763527909148,0.05933,91504.0,91503.0,0.40387]
[1763527909856,0.04641,91504.0,91503.0,0.40387]
[1763527910258,0.02387,91504.0,91503.0,0.40387]
[1763527910644,0.001,91504.0,91503.0,0.40387]
[1763527911254,0.02387,91504.0,91503.0,0.40387]
[1763527911760,0.001,91504.0,91503.0,0.66803]
[1763527912460,0.001,91504.0,91503.0,0.7773958]
[1763527920270,0.000164,91513.0,91512.0,0.1529351]
[1763527920464,0.021704,91513.0,91512.0,0.7778151]
[1763527921464,0.000164,91513.0,91512.0,0.7778151]
[1763527921864,0.001164,91513.0,91512.0,0.7778151]
[1763527922569,0.05553,91539.0,91538.0,0.04358]
[1763527923169,0.05553,91539.0,91538.0,0.02188]
[1763527923358,0.05553,91539.0,91538.0,0.04358]
[1763527924773,0.05553,91539.0,91538.0,0.04458]
[1763527925163,0.04261,91539.0,91538.0,0.04458]
[1763527925366,0.04261,91539.0,91538.0,0.04358]
[1763527925768,0.0217039,91548.0,91547.0,0.1528933]
[1763527925973,0.0427739,91548.0,91547.0,0.1528933]
[1763527926470,0.0427739,91548.0,91547.0,0.04358]
[1763527926976,0.0001639,91548.0,91547.0,0.04358]
[1763527927781,0.0564,91546.0,91545.0,0.3608]
[1763527927972,0.0564,91546.0,91545.0,0.62484]
[1763527928175,0.0564,91546.0,91545.0,0.64672]
[1763527928371,0.0554,91546.0,91545.0,0.64672]
[1763527928575,0.0554,91546.0,91545.0,0.66842]
[1763527928877,0.0554,91546.0,91545.0,0.40438]
[1763527929082,0.0554,91546.0,91545.0,0.001]
[1763527929577,0.1509436,91530.0,91529.0,0.0220439]
[1763527929882,0.1519579,91518.0,91517.0,0.3608]
[1763527931476,0.04261,91518.0,91517.0,0.38268]
[1763527931673,0.04261,91518.0,91517.0,0.3618]
[1763527932173,0.04261,91518.0,91517.0,0.38268]
[1763527932374,0.04261,91518.0,91517.0,0.40438]
[1763527933772,0.1519687,91509.0,91508.0,0.0001639]
[1763527934888,0.1519687,91509.0,91508.0,0.0011639]
[1763527935381,0.1519687,91509.0,91508.0,0.0001639]
[1763527937284,0.04261,91509.0,91508.0,0.0220439]
[1763527937685,0.04261,91509.0,91508.0,0.0001639]
[1763527939384,0.04261,91509.0,91508.0,0.0011639]
[1763527940690,0.04261,91509.0,91508.0,0.0001639]
[1763527941483,0.04361,91509.0,91508.0,0.0001639]
[1763527941989,0.04361,91509.0,91508.0,0.0437439]
[1763527942291,0.04361,91509.0,91508.0,0.0001639]
[1763527944286,0.04261,91509.0,91508.0,0.0001639]
[1763527944486,0.1536218,91498.0,91497.0,0.3608]
[1763527944889,0.04425,91498.0,91497.0,0.514983]
[1763527946795,0.0001639,91507.0,91506.0,0.04481]
[1763527946989,0.0001639,91507.0,91506.0,0.5149723]
[1763527947590,0.0434439,91507.0,91506.0,0.40561]
[1763527947991,0.0444439,91507.0,91506.0,0.40561]
[1763527948688,0.0234139,91507.0,91506.0,0.40561]
[1763527949194,0.0444439,91507.0,91506.0,0.40561]
[1763527953895,0.02299,91498.0,91497.0,0.384]
[1763527954089,0.04402,91498.0,91497.0,0.515263]
[1763527954491,0.04402,91498.0,91497.0,0.40589]
[1763527955595,0.02299,91504.0,91503.0,0.04509]
[1763527955796,0.02299,91504.0,91503.0,0.1544558]
[1763527956197,0.04402,91504.0,91503.0,0.1544558]
[1763527956396,0.04402,91504.0,91500.0,0.00219803]
[1763527956397,0.0011639,91507.0,91506.0,0.1544523]
[1763527956594,0.0001639,91507.0,91506.0,0.5152523]
[1763527958402,0.0231539,91507.0,91506.0,0.40589]
[1763527959099,0.0441839,91507.0,91506.0,0.40589]
[1763527959798,0.0441839,91507.0,91506.0,0.40689]
[1763527960689,0.0441839,91507.0,91506.0,0.40589]
[1763527960690,0.0001639,91507.0,91506.0,0.40589]
[1763527960901,0.0001639,91507.0,91506.0,0.40689]
[1763527961705,0.0001639,91507.0,91506.0,0.5162523]
[1763527962299,0.41861,91520.0,91519.0,0.04509]
[1763527964303,0.0441839,91529.0,91528.0,0.04509]
[1763527964996,0.1535187,91529.0,91528.0,0.04509]
[1763527965204,0.1533584,91526.0,91525.0,0.384]
[1763527965399,0.04402,91526.0,91525.0,0.384]
[1763527965705,0.02299,91526.0,91525.0,0.40589]
[1763527966403,0.04402,91526.0,91525.0,0.40589]
[1763527966603,0.04502,91526.0,91525.0,0.40589]
[1763527969608,0.001,91526.0,91525.0,0.40589]
[1763527970511,0.001,91526.0,91525.0,0.41482]
[1763527971405,0.001,91526.0,91525.0,0.40589]
[1763527972415,0.0001639,91529.0,91528.0,0.04509]
[1763527973712,0.0011639,91529.0,91528.0,0.04509]
[1763527975707,0.0241539,91529.0,91528.0,0.04509]
[1763527976115,0.0451839,91529.0,91528.0,0.30909]
[1763527976502,0.0451839,91529.0,91528.0,0.04509]
[1763527977814,0.0451839,91529.0,91528.0,0.0232]
[1763527978514,0.0451839,91529.0,91528.0,0.04433]
[1763527978905,0.0451839,91529.0,91528.0,0.153666]
[1763527979102,0.0451839,91529.0,91528.0,0.04433]
[1763527979306,0.0451839,91529.0,91528.0,0.0232]
[1763527979713,0.0451839,91529.0,91528.0,0.04433]
[1763527981812,0.01334,91518.0,91512.0,0.1525649]
[1763527982113,0.1538063,91511.0,91510.0,0.00236193]
[1763527982518,0.1538063,91511.0,91510.0,0.02444193]
[1763527982817,0.1538063,91511.0,91510.0,0.04557193]
[1763527983204,0.04445,91511.0,91510.0,0.04557193]
[1763527983406,0.05779,91518.0,91517.0,0.04321]
[1763527983610,0.05779,91518.0,91517.0,0.1525591]
[1763527985109,0.05779,91524.0,91523.0,0.1525519]
[1763527985617,0.02273,91524.0,91523.0,0.1525519]
[1763527985803,0.04445,91524.0,91523.0,0.1525519]
[1763527986416,0.04545,91524.0,91523.0,0.1525519]
[1763527986608,0.04545,91524.0,91523.0,0.04321]
[1763527986818,0.04445,91521.0,91520.0,0.02427803]
[1763527987009,0.04345,91521.0,91520.0,0.04540803]
[1763527988613,0.04245,91521.0,91520.0,0.04540803]
[1763527989116,0.04245,91521.0,91520.0,0.04640803]
[1763527990813,0.0446139,91529.0,91528.0,0.152546]
[1763527991010,0.0228939,91529.0,91528.0,0.152546]
[1763527991213,0.0446139,91529.0,91528.0,0.152546]
[1763527991615,0.0228939,91529.0,91528.0,0.152546]
[1763527992209,0.0446139,91529.0,91528.0,0.152546]
[1763527992618,0.0228939,91529.0,91528.0,0.152546]
[1763527992818,0.0238939,91529.0,91528.0,0.152546]
[1763527993319,0.0456139,91529.0,91528.0,0.152546]
[1763527996119,0.0456139,91529.0,91528.0,0.04321]
[1763527996416,0.0011639,91529.0,91528.0,0.04321]
[1763527996623,0.01334,91560.0,91547.0,0.04321]
[1763527996923,0.40525,91548.0,91547.0,0.04321]
[1763527997112,0.04445,91548.0,91547.0,0.04321]
[1763527997313,0.04445,91548.0,91547.0,0.40401]
[1763527998120,0.1537621,91548.0,91547.0,0.40401]
[1763527998306,0.1537621,91548.0,91547.0,0.5133233]
[1763527998910,0.1537621,91548.0,91547.0,0.40401]
[1763527999119,0.1537621,91548.0,91547.0,0.40501]
[1763528000217,0.04445,91548.0,91547.0,0.5143233]
[1763528000920,0.04445,91548.0,91547.0,0.40501]
[1763528001117,0.04445,91548.0,91547.0,0.40401]
[1763528002118,0.04445,91548.0,91547.0,0.40501]
[1763528002917,0.1537621,91548.0,91547.0,0.38388]
[1763528003624,0.1537621,91548.0,91547.0,0.3618]
[1763528003832,0.1537621,91548.0,91547.0,0.40535]
[1763528004823,0.05912,91553.0,91552.0,0.1528573]
[1763528005213,0.05912,91553.0,91552.0,0.04355]
[1763528005527,0.05912,91553.0,91552.0,0.1528573]
[1763528006931,0.04578,91553.0,91552.0,0.1528573]
[1763528007132,0.05846,91553.0,91552.0,0.04355]
[1763528011228,0.05846,91553.0,91552.0,0.02231]
[1763528011416,0.05846,91553.0,91552.0,0.04348]
[1763528011622,0.05946,91553.0,91552.0,0.04348]
[1763528011817,0.04312,91551.0,91550.0,0.00219803]
[1763528012431,0.04312,91551.0,91550.0,0.04483803]
[1763528012729,0.04312,91551.0,91550.0,0.00219803]
[1763528012922,0.04312,91551.0,91550.0,0.02366803]
[1763528013429,0.04412,91551.0,91550.0,0.02366803]
[1763528014830,0.04412,91551.0,91550.0,0.04483803]
[1763528017825,0.04412,91551.0,91550.0,0.02366803]
[1763528018828,0.04412,91551.0,91550.0,0.00219803]
[1763528019428,0.04412,91551.0,91539.0,0.4701226]
[1763528019429,0.1093216,91540.0,91539.0,0.3608]
[1763528019628,0.1524416,91540.0,91539.0,0.3608]
[1763528021230,0.04312,91539.0,91531.0,0.3608]
[1763528022737,0.04212,91539.0,91531.0,0.3608]
[1763528023633,0.04212,91539.0,91538.0,0.0428039]
[1763528024027,0.04212,91539.0,91538.0,0.0438039]
[1763528025536,0.04212,91539.0,91538.0,0.0428039]
[1763528026139,0.04212,91539.0,91538.0,0.0438039]
[1763528026739,0.04212,91539.0,91538.0,0.0428039]
[1763528027330,0.04312,91541.0,91540.0,0.11151963]
[1763528027536,0.04312,91541.0,91540.0,0.38446803]
[1763528027736,0.04312,91541.0,91540.0,0.40563803]
[1763528027941,0.05609,91548.0,91547.0,0.04264]
[1763528030532,0.05609,91548.0,91547.0,0.02147]
[1763528030740,0.1524404,91541.0,91540.0,0.40344]
[1763528030944,0.1524404,91541.0,91540.0,0.36299803]
[1763528034252,0.1524404,91541.0,91540.0,0.40563803]
[1763528038041,0.04312,91541.0,91540.0,0.40563803]
[1763528038747,0.02208,91541.0,91540.0,0.40563803]
[1763528039452,0.001,91541.0,91540.0,0.40563803]
[1763528039754,0.04724,91541.0,91540.0,0.40563803]
[1763528041849,0.04724,91541.0,91540.0,0.38446803]
[1763528042051,0.04724,91541.0,91540.0,0.36299803]
[1763528042352,0.04724,91541.0,91540.0,0.00219803]
[1763528044158,0.001,91541.0,91540.0,0.51508963]
[1763528044353,0.04724,91541.0,91540.0,0.51508963]
[1763528044554,0.04724,91541.0,91540.0,0.66964803]
[1763528044752,0.01373,91548.0,91540.0,0.40576803]
[1763528045067,0.05997,91548.0,91547.0,0.1520833]
[1763528048357,0.1692821,91548.0,91547.0,0.04277]
[1763528048962,0.04624,91541.0,91540.0,0.40357]
[1763528049159,0.04624,91541.0,91540.0,0.00219803]
[1763528049561,0.04624,91541.0,91540.0,0.02325803]
[1763528050064,0.04624,91541.0,91540.0,0.04496803]
[1763528051065,0.04624,91541.0,91540.0,0.04596803]
[1763528051665,0.04724,91541.0,91540.0,0.04496803]
[1763528052166,0.04624,91541.0,91540.0,0.04496803]
[1763528052467,0.04724,91541.0,91540.0,0.04496803]
[1763528053770,0.04724,91541.0,91540.0,0.02325803]
[1763528053966,0.04724,91541.0,91540.0,0.04496803]
[1763528054167,0.05997,91539.0,91538.0,0.0001639]
[1763528054468,0.02314,91509.0,91508.0,0.1521299]
[1763528054770,0.04624,91509.0,91508.0,0.02106]
[1763528055269,0.04624,91509.0,91508.0,0.04277]
[1763528055767,0.04624,91505.0,91504.0,0.3608]
[1763528056164,0.04524,91505.0,91504.0,0.3608]
[1763528056963,0.04624,91501.0,91500.0,0.00219803]
[1763528057870,0.1556094,91500.0,91499.0,0.0001639]
[1763528059069,0.01373,91504.0,91499.0,0.0001639]
[1763528059070,0.05997,91504.0,91503.0,0.04277]
[1763528059870,0.04624,91501.0,91500.0,0.00219803]
[1763528061774,0.04624,91501.0,91500.0,0.02325803]
[1763528063772,0.04624,91501.0,91500.0,0.00219803]
[1763528064768,0.04431,91487.0,91486.0,0.04542327]
[1763528064970,0.153695,91487.0,91486.0,0.04542327]
[1763528065477,0.153695,91487.0,91486.0,0.00027327]
[1763528067076,0.153695,91487.0,91486.0,0.00127327]
[1763528067576,0.153695,91487.0,91486.0,0.00027327]